lending/lending_fUSD_20240507
["ID","MTS","AMOUNT","RATE_DAILY","PERIOD"]
[326564821,1715109107430,-19796.11065348,0.00022,2]
[326564822,1715109107442,-567.0129288,0.00022,2]
[326564823,1715109107453,-2108.61590827,0.00022,2]
[326564824,1715109107465,-644.58765686,0.00022,2]
[326564825,1715109107477,-16913.54416816,0.00022,2]
[326564826,1715109107489,-31842.78461351,0.00022,2]
[326564827,1715109107500,-67689.64903739,0.00022,2]
[326564828,1715109107512,-757.39838594,0.00022,2]
[326564829,1715109107527,-279673.37332491,0.00022,2]
[326564830,1715109107541,-541.72179993,0.00022,2]
[326564832,1715109641531,-407.60248368,9.27e-05,2]
[326564833,1715109641558,-538.81220772,9.271e-05,2]
[326564834,1715109641584,-326.27536814,9.271e-05,2]
[326564835,1715109641609,-330.06646041,9.322e-05,2]
[326564836,1715109641644,-7358.31890269,9.322e-05,2]
[326564840,1715110233600,-3499.383077,0.00010851,2]
[326564843,1715110233610,-155.0,0.00010906,2]
[326564845,1715110233619,-150.0,0.00010906,2]
[326564847,1715110233629,-150.0,0.00010906,2]
[326564850,1715110233638,-2059.88841638,0.00010907,2]
[326564855,1715110233651,-260.79473481,0.00010907,2]
[326564858,1715110233663,-1421.18809713,0.00010907,2]
[326564859,1715110233674,-566.33962102,0.00010907,2]
[326564860,1715110233686,-346.53616094,0.00010907,2]
[326564861,1715110233697,-1328.99296972,0.00010907,2]
[326564862,1715110233707,-265.91132073,0.00011021,2]
[326564863,1715110233716,-3085.52798697,0.00011025,2]
[326564864,1715110233726,-3268.0722,0.00011026,2]
[326564865,1715110233735,-1890.25299492,0.00011872,2]
[326564866,1715110233746,-872.88018453,0.00011872,2]
[326564867,1715110233755,-538.81220772,0.00011999,2]
[326564868,1715110233764,-15037.46639927,0.00012,2]
[326564869,1715110233774,-999.99,0.00012125,2]
[326564870,1715110233783,-150.99,0.00012125,2]
[326564871,1715110233793,-657.97,0.00012125,2]
[326564872,1715110233802,-150.99,0.00012125,2]
[326564873,1715110233812,-499.99,0.00012237,2]
[326564874,1715110233821,-181.46,0.00012429,2]
[326564875,1715110233831,-9999.99,0.00012429,2]
[326564876,1715110233840,-1000.0,0.00013194,2]
[326564877,1715110233849,-1980.52,0.00013195,2]
[326564878,1715110233859,-3107.67,0.00014999,2]
[326564879,1715110233868,-1002.81222843,0.00015,2]
[326564880,1715110233877,-603.96,0.00015,2]
[326564881,1715110233887,-618.22068598,0.00015,2]
[326564882,1715110233896,-600.0,0.00015205,2]
[326564883,1715110233905,-499.99,0.00015205,2]
[326564884,1715110233915,-7796.3,0.00015396,2]
[326564885,1715110233925,-150.0,0.00015483,2]
[326564886,1715110233939,-326.00629389,0.00015625,2]
[326564887,1715110233948,-1127.97444567,0.00015625,2]
[326564888,1715110233958,-188.87,0.00015665,2]
[326564889,1715110233967,-500.0,0.00015721,2]
[326564890,1715110233978,-591.22,0.00015753,2]
[326564891,1715110233988,-591.22,0.00015796,2]
[326564892,1715110233997,-1500.0,0.00015839,2]
[326564893,1715110234007,-591.22,0.0001584,2]
[326564894,1715110234016,-150.0,0.00015873,2]
[326564895,1715110234026,-591.22,0.00015883,2]
[326564896,1715110234035,-416.0,0.00015885,2]
[326564897,1715110234044,-200.0,0.00015914,2]
[326564898,1715110234054,-591.22,0.00015926,2]
[326564899,1715110234063,-1852.42,0.00015935,2]
[326564900,1715110234072,-23890.0,0.00015953,2]
[326564901,1715110234082,-250.0,0.00015961,2]
[326564902,1715110234091,-591.22,0.00015969,2]
[326564903,1715110234100,-3077.0200038,0.00016,2]
[326564904,1715110234110,-591.22,0.00016012,2]
[326564905,1715110234119,-591.22,0.00016056,2]
[326564906,1715110234128,-591.22,0.00016099,2]
[326564907,1715110234137,-591.22,0.00016142,2]
[326564908,1715110234146,-591.22,0.00016185,2]
[326564909,1715110234155,-591.22,0.00016228,2]
[326564910,1715110234164,-591.22,0.00016272,2]
[326564911,1715110234174,-591.22,0.00016315,2]
[326564912,1715110234184,-591.22,0.00016358,2]
[326564913,1715110234193,-591.22,0.00016401,2]
[326564914,1715110234202,-591.22,0.00016445,2]
[326564915,1715110234211,-591.22,0.00016488,2]
[326564916,1715110234220,-165.91,0.00016525,2]
[326564917,1715110234230,-591.22,0.00016531,2]
[326564918,1715110234243,-591.22,0.00016574,2]
[326564919,1715110234255,-225.5,0.00016768,2]
[326564920,1715110234265,-384.09,0.00016895,2]
[326564921,1715110234274,-10304.4,0.00017359,2]
[326564922,1715110234284,-155.0,0.00017505,2]
[326564923,1715110234294,-7126.21863798,0.00017713,2]
[326564924,1715110234303,-232.06,0.00017847,2]
[326564925,1715110234313,-400.0,0.000189,6]
[326564926,1715110234322,-954.46074173,0.00018903,2]
[326564927,1715110234332,-750.17982827,0.00018983,2]
[326564928,1715110234342,-865.3814186,0.00019078,2]
[326564929,1715110234351,-650.00243248,0.00019078,2]
[326564930,1715110234361,-302.76502384,0.00019078,2]
[326564931,1715110234370,-1192.46328442,0.00019078,2]
[326564932,1715110234380,-229620.8847,0.00019078,2]
[326564933,1715110234390,-800.0,0.00019151,2]
[326564934,1715110234400,-800.0,0.00019151,2]
[326564935,1715110234409,-800.0,0.00019151,2]
[326564936,1715110234419,-613.09,0.00019151,2]
[326564937,1715110234429,-204.17519546,0.00019176,2]
[326564938,1715110234439,-317.4316254,0.00019176,2]
[326564939,1715110234449,-299.52403676,0.00019176,2]
[326564940,1715110234458,-408.47070558,0.00019176,2]
[326564941,1715110234468,-240.9133084,0.00019177,2]
[326564942,1715110234477,-319.73872803,0.00019177,2]
[326564943,1715110234487,-559.85137312,0.00019178,2]
[326564944,1715110234497,-409.22946634,0.00019178,2]
[326564945,1715110234507,-500.0,0.00019178,2]
[326564946,1715110234517,-500.0,0.00019178,2]
[326564947,1715110234526,-500.0,0.00019178,2]
[326564948,1715110234536,-500.0,0.00019178,2]
[326564949,1715110234545,-500.0,0.00019178,2]
[326564950,1715110234556,-500.0,0.00019178,2]
[326564951,1715110234565,-500.0,0.00019178,2]
[326564952,1715110234575,-604.24,0.00019178,2]
[326564953,1715110234585,-500.0,0.00019178,2]
[326564954,1715110234595,-500.0,0.00019178,2]
[326564955,1715110234604,-500.0,0.00019178,2]
[326564956,1715110234614,-500.0,0.00019178,2]
[326564957,1715110234623,-500.0,0.00019178,2]
[326564958,1715110234633,-500.0,0.00019178,2]
[326564959,1715110234643,-500.0,0.00019178,2]
[326564960,1715110234652,-500.0,0.00019178,2]
[326564961,1715110234661,-500.0,0.00019178,2]
[326564962,1715110234671,-500.0,0.00019178,2]
[326564963,1715110234681,-503.23,0.00019178,2]
[326564964,1715110234690,-500.0,0.00019178,2]
[326564965,1715110234700,-500.0,0.00019178,2]
[326564966,1715110234709,-500.0,0.00019178,2]
[326564967,1715110234719,-500.0,0.00019178,2]
[326564968,1715110234729,-535.84850969,0.00019178,2]
[326564969,1715110234739,-500.0,0.00019178,2]
[326564970,1715110234748,-500.0,0.00019178,2]
[326564971,1715110234758,-500.0,0.00019178,2]
[326564972,1715110234767,-715.85,0.00019178,2]
[326564973,1715110234776,-500.0,0.00019178,2]
[326564974,1715110234786,-500.0,0.00019178,2]
[326564975,1715110234796,-500.0,0.00019178,2]
[326564976,1715110234806,-500.0,0.00019178,2]
[326564977,1715110234817,-500.0,0.00019178,2]
[326564978,1715110234826,-500.0,0.00019178,2]
[326564979,1715110234835,-660.54,0.00019178,2]
[326564980,1715110234845,-500.0,0.00019178,2]
[326564981,1715110234855,-500.0,0.00019178,2]
[326564982,1715110234865,-500.0,0.00019178,2]
[326564983,1715110234874,-500.0,0.00019178,2]
[326564984,1715110234884,-500.0,0.00019178,2]
[326564985,1715110234894,-500.0,0.00019178,2]
[326564986,1715110234904,-500.0,0.00019178,2]
[326564987,1715110234913,-500.0,0.00019178,2]
[326564988,1715110234923,-1002.95,0.00019178,2]
[326564989,1715110234937,-500.0,0.00019178,2]
[326564990,1715110234947,-500.0,0.00019178,2]
[326564991,1715110234956,-500.0,0.00019178,2]
[326564992,1715110234966,-500.0,0.00019178,2]
[326564993,1715110234976,-500.0,0.00019178,2]
[326564994,1715110234986,-500.0,0.00019178,2]
[326564995,1715110234996,-500.0,0.00019178,2]
[326564996,1715110235007,-500.0,0.00019178,2]
[326564997,1715110235017,-500.0,0.00019178,2]
[326564998,1715110235027,-500.0,0.00019178,2]
[326564999,1715110235038,-500.0,0.00019178,2]
[326565000,1715110235047,-500.0,0.00019178,2]
[326565001,1715110235057,-500.0,0.00019178,2]
[326565002,1715110235067,-723.07,0.00019178,2]
[326565003,1715110235077,-500.0,0.00019178,2]
[326565004,1715110235087,-500.0,0.00019178,2]
[326565005,1715110235097,-508.65503501,0.00019178,2]
[326565006,1715110235107,-571.26,0.00019178,2]
[326565007,1715110235116,-500.0,0.00019178,2]
[326565008,1715110235126,-500.0,0.00019178,2]
[326565009,1715110235135,-500.0,0.00019178,2]
[326565010,1715110235145,-500.0,0.00019178,2]
[326565011,1715110235154,-500.0,0.00019178,2]
[326565012,1715110235164,-500.0,0.00019178,2]
[326565013,1715110235173,-500.0,0.00019178,2]
[326565014,1715110235183,-500.0,0.00019178,2]
[326565015,1715110235192,-500.0,0.00019178,2]
[326565016,1715110235202,-500.0,0.00019178,2]
[326565017,1715110235211,-500.0,0.00019178,2]
[326565018,1715110235221,-636.43,0.00019178,2]
[326565019,1715110235230,-500.0,0.00019178,2]
[326565020,1715110235244,-500.0,0.00019178,2]
[326565021,1715110235254,-500.0,0.00019178,2]
[326565022,1715110235264,-500.0,0.00019178,2]
[326565023,1715110235273,-592.63,0.00019178,2]
[326565024,1715110235283,-500.0,0.00019178,2]
[326565025,1715110235292,-500.0,0.00019178,2]
[326565026,1715110235302,-500.0,0.00019178,2]
[326565027,1715110235312,-500.0,0.00019178,2]
[326565028,1715110235321,-500.0,0.00019178,2]
[326565029,1715110235331,-500.0,0.00019178,2]
[326565030,1715110235340,-500.0,0.00019178,2]
[326565031,1715110235350,-500.0,0.00019178,2]
[326565032,1715110235359,-500.0,0.00019178,2]
[326565033,1715110235369,-700.73,0.00019178,2]
[326565034,1715110235379,-500.0,0.00019178,2]
[326565035,1715110235389,-633.26065823,0.00019178,2]
[326565036,1715110235398,-524.96643355,0.00019178,2]
[326565037,1715110235408,-500.0,0.00019178,2]
[326565038,1715110235418,-500.0,0.00019178,2]
[326565039,1715110235427,-500.0,0.00019178,2]
[326565040,1715110235437,-599.71,0.00019178,2]
[326565041,1715110235446,-500.0,0.00019178,2]
[326565042,1715110235456,-500.0,0.00019178,2]
[326565043,1715110235466,-500.0,0.00019178,2]
[326565044,1715110235475,-500.0,0.00019178,2]
[326565045,1715110235485,-511.24,0.00019178,2]
[326565046,1715110235496,-500.0,0.00019178,2]
[326565047,1715110235505,-586.71,0.00019178,2]
[326565048,1715110235515,-500.0,0.00019178,2]
[326565049,1715110235524,-500.0,0.00019178,2]
[326565050,1715110235534,-609.18,0.00019178,2]
[326565051,1715110235544,-500.0,0.00019178,2]
[326565052,1715110235554,-500.0,0.00019178,2]
[326565053,1715110235563,-500.0,0.00019178,2]
[326565054,1715110235573,-616.2,0.00019178,2]
[326565055,1715110235582,-652.8,0.00019178,2]
[326565056,1715110235593,-500.0,0.00019178,2]
[326565057,1715110235603,-500.0,0.00019178,2]
[326565058,1715110235612,-500.0,0.00019178,2]
[326565059,1715110235622,-500.0,0.00019178,2]
[326565060,1715110235632,-500.0,0.00019178,2]
[326565061,1715110235641,-500.0,0.00019178,2]
[326565062,1715110235651,-500.0,0.00019178,2]
[326565063,1715110235660,-500.0,0.00019178,2]
[326565064,1715110235670,-500.0,0.00019178,2]
[326565065,1715110235679,-642.01691443,0.00019178,2]
[326565066,1715110235689,-658.4,0.00019178,2]
[326565067,1715110235699,-500.0,0.00019178,2]
[326565068,1715110235708,-500.0,0.00019178,2]
[326565069,1715110235717,-500.0,0.00019178,2]
[326565070,1715110235727,-500.0,0.00019178,2]
[326565071,1715110235739,-500.0,0.00019178,2]
[326565072,1715110235749,-627.77855388,0.00019178,2]
[326565073,1715110235759,-500.0,0.00019178,2]
[326565074,1715110235769,-500.0,0.00019178,2]
[326565075,1715110235778,-500.0,0.00019178,2]
[326565076,1715110235788,-500.0,0.00019178,2]
[326565077,1715110235798,-433.13311898,0.00019178,2]
[326565078,1715110235808,-500.0,0.00019178,2]
[326565079,1715110235817,-506.02,0.00019178,2]
[326565080,1715110235826,-500.0,0.00019178,2]
[326565081,1715110235835,-500.0,0.00019178,2]
[326565082,1715110235845,-500.0,0.00019178,2]
[326565083,1715110235855,-500.0,0.00019178,2]
[326565084,1715110235864,-581.70998081,0.00019178,2]
[326565085,1715110235874,-500.0,0.00019178,2]
[326565086,1715110235883,-506.33901535,0.00019178,2]
[326565087,1715110235893,-500.0,0.00019178,2]
[326565088,1715110235902,-500.0,0.00019178,2]
[326565089,1715110235911,-500.0,0.00019178,2]
[326565090,1715110235921,-500.0,0.00019178,2]
[326565091,1715110235936,-500.0,0.00019178,2]
[326565092,1715110235946,-569.38,0.00019178,2]
[326565093,1715110235955,-500.0,0.00019178,2]
[326565094,1715110235964,-500.0,0.00019178,2]
[326565095,1715110235974,-500.0,0.00019178,2]
[326565096,1715110235984,-500.0,0.00019178,2]
[326565097,1715110235997,-528.18,0.00019178,2]
[326565098,1715110236008,-500.0,0.00019178,2]
[326565099,1715110236018,-500.0,0.00019178,2]
[326565100,1715110236029,-514.15,0.00019178,2]
[326565101,1715110236038,-500.0,0.00019178,2]
[326565102,1715110236048,-500.0,0.00019178,2]
[326565103,1715110236057,-518.95,0.00019178,2]
[326565104,1715110236067,-500.0,0.00019178,2]
[326565105,1715110236077,-500.0,0.00019178,2]
[326565106,1715110236087,-500.0,0.00019178,2]
[326565107,1715110236096,-500.0,0.00019178,2]
[326565108,1715110236108,-500.0,0.00019178,2]
[326565109,1715110236118,-675.67,0.00019178,2]
[326565110,1715110236127,-500.0,0.00019178,2]
[326565111,1715110236136,-500.0,0.00019178,2]
[326565112,1715110236146,-515.05,0.00019178,2]
[326565113,1715110236156,-500.0,0.00019178,2]
[326565114,1715110236165,-500.0,0.00019178,2]
[326565115,1715110236175,-500.0,0.00019178,2]
[326565116,1715110236184,-500.0,0.00019178,2]
[326565117,1715110236194,-500.0,0.00019178,2]
[326565118,1715110236203,-500.0,0.00019178,2]
[326565119,1715110236214,-500.0,0.00019178,2]
[326565120,1715110236223,-500.0,0.00019178,2]
[326565121,1715110236232,-500.0,0.00019178,2]
[326565122,1715110236247,-500.0,0.00019178,2]
[326565123,1715110236256,-500.0,0.00019178,2]
[326565124,1715110236266,-500.0,0.00019178,2]
[326565125,1715110236275,-500.0,0.00019178,2]
[326565126,1715110236285,-500.0,0.00019178,2]
[326565127,1715110236294,-500.0,0.00019178,2]
[326565128,1715110236303,-500.0,0.00019178,2]
[326565129,1715110236312,-543.21,0.00019178,2]
[326565130,1715110236323,-347.41501027,0.00019178,2]
[326565131,1715110236345,-152.58498973,0.00019178,2]
[326565132,1715110236355,-500.0,0.00019178,2]
[326565133,1715110236365,-500.0,0.00019178,2]
[326565134,1715110236375,-500.0,0.00019178,2]
[326565135,1715110236384,-500.0,0.00019178,2]
[326565136,1715110236394,-500.0,0.00019178,2]
[326565137,1715110236403,-500.0,0.00019178,2]
[326565138,1715110236413,-500.0,0.00019178,2]
[326565139,1715110236423,-500.0,0.00019178,2]
[326565140,1715110236444,-500.0,0.00019178,2]
[326565141,1715110236455,-500.0,0.00019178,2]
[326565142,1715110236465,-499.64402532,0.00019178,2]
[326565143,1715110236475,-333.67088495,0.00019178,2]
[326565144,1715110236491,-595.37911505,0.00019178,2]
[326565145,1715110236501,-1038.08,0.00019178,2]
[326565146,1715110236510,-500.0,0.00019178,2]
[326565147,1715110236520,-500.0,0.00019178,2]
[326565148,1715110236530,-606.23,0.00019178,2]
[326565149,1715110236541,-806.7,0.00019178,2]
[326565150,1715110236551,-500.0,0.00019178,2]
[326565151,1715110236561,-500.0,0.00019178,2]
[326565152,1715110236572,-500.0,0.00019178,2]
[326565153,1715110236582,-13.87088495,0.00019178,2]
[326565154,1715110236595,-486.12911505,0.00019178,2]
[326565155,1715110236604,-500.0,0.00019178,2]
[326565156,1715110236613,-747.05,0.00019178,2]
[326565157,1715110236623,-500.0,0.00019178,2]
[326565158,1715110236633,-705.53,0.00019178,2]
[326565159,1715110236643,-500.0,0.00019178,2]
[326565160,1715110236652,-500.0,0.00019178,2]
[326565161,1715110236662,-500.0,0.00019178,2]
[326565162,1715110236672,-831.54,0.00019178,2]
[326565163,1715110236682,-594.22,0.00019178,2]
[326565164,1715110236692,-500.0,0.00019178,2]
[326565165,1715110236702,-500.0,0.00019178,2]
[326565166,1715110236711,-500.0,0.00019178,2]
[326565167,1715110236721,-500.0,0.00019178,2]
[326565168,1715110236731,-6577.45,0.00019178,2]
[326565169,1715110236742,-500.0,0.00019178,2]
[326565170,1715110236752,-500.0,0.00019178,2]
[326565171,1715110236762,-500.0,0.00019178,2]
[326565172,1715110236771,-500.0,0.00019178,2]
[326565173,1715110236780,-500.0,0.00019178,2]
[326565174,1715110236790,-500.0,0.00019178,2]
[326565175,1715110236801,-500.0,0.00019178,2]
[326565176,1715110236812,-500.0,0.00019178,2]
[326565177,1715110236822,-589.89,0.00019178,2]
[326565178,1715110236832,-500.0,0.00019178,2]
[326565179,1715110236842,-500.0,0.00019178,2]
[326565180,1715110236852,-483.83276038,0.00019178,2]
[326565181,1715110236862,-522.54,0.00019178,2]
[326565182,1715110236871,-500.0,0.00019178,2]
[326565183,1715110236881,-582.25,0.00019178,2]
[326565184,1715110236891,-500.0,0.00019178,2]
[326565185,1715110236900,-591.48,0.00019178,2]
[326565186,1715110236911,-719.87,0.00019178,2]
[326565187,1715110236921,-500.0,0.00019178,2]
[326565188,1715110236935,-500.0,0.00019178,2]
[326565189,1715110236945,-500.0,0.00019178,2]
[326565190,1715110236955,-193.13927625,0.00019178,2]
[326565191,1715110236964,-516.03,0.00019178,2]
[326565192,1715110236974,-500.0,0.00019178,2]
[326565193,1715110236984,-500.0,0.00019178,2]
[326565194,1715110236995,-552.11,0.00019178,2]
[326565195,1715110237006,-500.0,0.00019178,2]
[326565196,1715110237321,-1363.91,0.00019178,2]
[326565197,1715110237332,-500.0,0.00019178,2]
[326565198,1715110237343,-645.35,0.00019178,2]
[326565199,1715110237352,-740.73,0.00019178,2]
[326565200,1715110237362,-500.0,0.00019178,2]
[326565201,1715110237372,-500.0,0.00019178,2]
[326565202,1715110237381,-500.0,0.00019178,2]
[326565203,1715110237392,-500.0,0.00019178,2]
[326565204,1715110237402,-500.0,0.00019178,2]
[326565205,1715110237411,-500.0,0.00019178,2]
[326565206,1715110237421,-500.0,0.00019178,2]
[326565207,1715110237432,-427.49633979,0.00019178,2]
[326565208,1715110237442,-500.0,0.00019178,2]
[326565209,1715110237451,-500.0,0.00019178,2]
[326565210,1715110237462,-9071.74,0.00019178,2]
[326565211,1715110237472,-563.27,0.00019178,2]
[326565212,1715110237482,-589.05,0.00019178,2]
[326565213,1715110237494,-633.29,0.00019178,2]
[326565214,1715110237505,-500.0,0.00019178,2]
[326565215,1715110237516,-500.0,0.00019178,2]
[326565216,1715110237526,-728.46,0.00019178,2]
[326565217,1715110237536,-500.0,0.00019178,2]
[326565218,1715110237546,-647.19,0.00019178,2]
[326565219,1715110237556,-500.0,0.00019178,2]
[326565220,1715110237566,-835.84,0.00019178,2]
[326565221,1715110237576,-550.59,0.00019178,2]
[326565222,1715110237586,-500.0,0.00019178,2]
[326565223,1715110237597,-500.0,0.00019178,2]
[326565224,1715110237607,-2692.91,0.00019178,2]
[326565225,1715110237616,-500.0,0.00019178,2]
[326565226,1715110237626,-617.78,0.00019178,2]
[326565227,1715110237636,-419.00237284,0.00019178,2]
[326565228,1715110237646,-1085.33,0.00019178,2]
[326565229,1715110237656,-500.0,0.00019178,2]
[326565230,1715110237666,-500.0,0.00019178,2]
[326565231,1715110237676,-504.72,0.00019178,2]
[326565232,1715110237686,-1368.09,0.00019178,2]
[326565233,1715110237696,-500.0,0.00019178,2]
[326565234,1715110237706,-2203.99445793,0.00019178,2]
[326565235,1715110237720,-610.68811159,0.00019178,2]
[326565236,1715110237732,-306.20467746,0.00019178,2]
[326565237,1715110237746,-2750.0,0.00019178,2]
[326565241,1715110239918,-1201.12168934,0.00019051,2]
[326565243,1715110239929,-1321.43275302,0.00019178,2]
[326565245,1715110239943,-603.99,0.00019178,2]
[326565248,1715110239954,-500.0,0.00019178,2]
[326565249,1715110239964,-500.0,0.00019178,2]
[326565252,1715110239975,-788.76,0.00019178,2]
[326565253,1715110239985,-716.25,0.00019178,2]
[326565255,1715110239996,-1169.61,0.00019178,2]
[326565258,1715110240009,-1068.78,0.00019178,2]
[326565259,1715110240019,-741.15,0.00019178,2]
[326565262,1715110240028,-756.84,0.00019178,2]
[326565264,1715110240039,-554.26,0.00019178,2]
[326565265,1715110240049,-9040.79,0.00019178,2]
[326565267,1715110240059,-730.71,0.00019178,2]
[326565269,1715110240070,-2134.02,0.00019178,2]
[326565272,1715110240080,-1176.89,0.00019178,2]
[326565273,1715110240091,-500.0,0.00019178,2]
[326565276,1715110240101,-500.0,0.00019178,2]
[326565278,1715110240111,-500.0,0.00019178,2]
[326565279,1715110240122,-500.0,0.00019178,2]
[326565281,1715110240132,-500.0,0.00019178,2]
[326565284,1715110240143,-500.0,0.00019178,2]
[326565285,1715110240153,-500.0,0.00019178,2]
[326565288,1715110240163,-500.0,0.00019178,2]
[326565290,1715110240174,-522.9,0.00019178,2]
[326565292,1715110240184,-500.0,0.00019178,2]
[326565294,1715110240194,-500.0,0.00019178,2]
[326565296,1715110240204,-500.0,0.00019178,2]
[326565298,1715110240214,-500.0,0.00019178,2]
[326565300,1715110240224,-1132.42,0.00019178,2]
[326565302,1715110240234,-591.9,0.00019178,2]
[326565303,1715110240245,-691.74,0.00019178,2]
[326565305,1715110240256,-500.0,0.00019178,2]
[326565306,1715110240266,-895.04,0.00019178,2]
[326565308,1715110240277,-1583.36,0.00019178,2]
[326565310,1715110240287,-500.0,0.00019178,2]
[326565312,1715110240297,-500.0,0.00019178,2]
[326565314,1715110240307,-1363.83,0.00019178,2]
[326565316,1715110240318,-500.0,0.00019178,2]
[326565318,1715110240328,-500.0,0.00019178,2]
[326565320,1715110240338,-500.0,0.00019178,2]
[326565322,1715110240348,-1691.63,0.00019178,2]
[326565324,1715110240358,-500.0,0.00019178,2]
[326565326,1715110240368,-500.0,0.00019178,2]
[326565328,1715110240378,-541.61,0.00019178,2]
[326565330,1715110240388,-500.0,0.00019178,2]
[326565332,1715110240397,-500.0,0.00019178,2]
[326565334,1715110240407,-500.0,0.00019178,2]
[326565336,1715110240417,-500.0,0.00019178,2]
[326565338,1715110240426,-571.96501878,0.00019178,2]
[326565340,1715110240436,-500.0,0.00019178,2]
[326565342,1715110240447,-1106.69,0.00019178,2]
[326565343,1715110240457,-1030.46,0.00019178,2]
[326565345,1715110240467,-500.0,0.00019178,2]
[326565347,1715110240478,-500.0,0.00019178,2]
[326565349,1715110240488,-500.0,0.00019178,2]
[326565351,1715110240498,-702.52,0.00019178,2]
[326565353,1715110240508,-560.76,0.00019178,2]
[326565356,1715110240530,-500.0,0.00019178,2]
[326565358,1715110240541,-500.0,0.00019178,2]
[326565360,1715110240551,-505.53,0.00019178,2]
[326565362,1715110240560,-1984.17,0.00019178,2]
[326565365,1715110240571,-500.0,0.00019178,2]
[326565367,1715110240581,-727.15,0.00019178,2]
[326565369,1715110240591,-500.0,0.00019178,2]
[326565370,1715110240601,-500.0,0.00019178,2]
[326565372,1715110240611,-500.0,0.00019178,2]
[326565374,1715110240621,-500.0,0.00019178,2]
[326565376,1715110240631,-641.62,0.00019178,2]
[326565378,1715110240642,-500.0,0.00019178,2]
[326565380,1715110240651,-766.36,0.00019178,2]
[326565382,1715110240662,-500.0,0.00019178,2]
[326565384,1715110240672,-500.0,0.00019178,2]
[326565386,1715110240682,-500.0,0.00019178,2]
[326565388,1715110240692,-500.0,0.00019178,2]
[326565390,1715110240702,-500.0,0.00019178,2]
[326565392,1715110240713,-500.0,0.00019178,2]
[326565394,1715110240723,-1688.66463962,0.00019178,2]
[326565397,1715110240739,-176.44536038,0.00019178,2]
[326565399,1715110240749,-500.0,0.00019178,2]
[326565401,1715110240759,-597.38,0.00019178,2]
[326565402,1715110240769,-622.38,0.00019178,2]
[326565404,1715110240779,-500.0,0.00019178,2]
[326565406,1715110240789,-1750.58,0.00019178,2]
[326565408,1715110240799,-1662.53,0.00019178,2]
[326565410,1715110240809,-897.3,0.00019178,2]
[326565412,1715110240819,-500.0,0.00019178,2]
[326565414,1715110240828,-749.1,0.00019178,2]
[326565416,1715110240838,-809.41,0.00019178,2]
[326565418,1715110240848,-814.6,0.00019178,2]
[326565420,1715110240857,-500.0,0.00019178,2]
[326565422,1715110240867,-1642.17,0.00019178,2]
[326565424,1715110240877,-1194.77,0.00019178,2]
[326565426,1715110240887,-608.3,0.00019178,2]
[326565428,1715110240896,-819.1,0.00019178,2]
[326565430,1715110240906,-2530.53,0.00019178,2]
[326565432,1715110240916,-2294.58,0.00019178,2]
[326565434,1715110240928,-626.78,0.00019178,2]
[326565436,1715110240939,-500.0,0.00019178,2]